[Event "Klubbmästerskap 2025 Hängrond"]
[Site "Linköping, Sweden"]
[Date "2025.02.18"]
[Round "2.4"]
[White "Pettersson, Börje"]
[Black "Andersson, Stefan 1975"]
[Result "1-0"]
[TimeControl "90 min + 30 sec/move"]
[WhiteElo "1906"]
[BlackElo "1937"]

1. e4 {[%clk 01:30:51]} {[%emt 00:00:08]} e5 {[%clk 01:30:44]} {[%emt
00:00:17]} 2. Nf3 {[%clk 01:30:48]} {[%emt 00:00:32]} Nc6 {[%clk 01:31:07]}
{[%emt 00:00:08]} 3. Bb5 {[%clk 01:30:49]} {[%emt 00:00:26]} a6 {[%clk
01:31:34]} {[%emt 00:00:06]} 4. Bxc6 {[%clk 01:28:40]} {[%emt 00:02:38]} dxc6
{[%clk 01:31:34]} {[%emt 00:00:31]} 5. O-O {[%clk 01:28:53]} {[%emt 00:00:16]}
Bg4 {[%clk 01:31:07]} {[%emt 00:00:57]} 6. h3 {[%clk 01:27:57]} {[%emt
00:01:26]} Bh5 {[%clk 01:31:34]} {[%emt 00:00:04]} 7. g4 {[%clk 01:24:38]}
{[%emt 00:03:48]} Bg6 {[%clk 01:31:06]} {[%emt 00:00:59]} 8. Nxe5 {[%clk
01:25:02]} {[%emt 00:00:05]} Qh4 {[%clk 01:31:20]} {[%emt 00:00:16]} 9. Qf3
{[%clk 01:25:08]} {[%emt 00:00:23]} f6 {[%clk 01:31:28]} {[%emt 00:00:23]} 10.
Nxg6 {[%clk 01:25:14]} {[%emt 00:00:23]} hxg6 {[%clk 01:31:54]} {[%emt
00:00:05]} 11. Kg2 {[%clk 01:25:27]} {[%emt 00:00:15]} g5 {[%clk 01:32:07]}
{[%emt 00:00:18]} 12. Rh1 {[%clk 01:19:07]} {[%emt 00:06:49]} Ne7 {[%clk
01:31:53]} {[%emt 00:00:45]} 13. d3 {[%clk 01:17:16]} {[%emt 00:02:20]} O-O-O
{[%clk 01:32:06]} {[%emt 00:00:18]} 14. Be3 {[%clk 01:13:21]} {[%emt 00:04:25]}
Qh7 {[%clk 01:31:36]} {[%emt 00:01:01]} 15. Nd2 {[%clk 01:08:06]} {[%emt
00:05:44]} Ng6 {[%clk 01:29:17]} {[%emt 00:02:49]} 16. Qf5+ {[%clk 01:07:30]}
{[%emt 00:01:06]} Kb8 {[%clk 01:29:39]} {[%emt 00:00:09]} 17. Kf1 {[%clk
01:02:32]} {[%emt 00:05:25]} Bd6 {[%clk 01:26:01]} {[%emt 00:04:11]} 18. Nc4
{[%clk 00:56:31]} {[%emt 00:06:31]} Bf4 {[%clk 01:23:07]} {[%emt 00:03:24]} 19.
a4 {[%clk 00:48:55]} {[%emt 00:08:06]} Qh6 {[%clk 01:21:15]} {[%emt 00:02:22]}
20. b4 {[%clk 00:46:10]} {[%emt 00:03:15]} Be5 {[%clk 01:19:49]} {[%emt
00:01:56]} 21. Nxe5 {[%clk 00:42:23]} {[%emt 00:04:17]} Nxe5 {[%clk 01:19:56]}
{[%emt 00:00:24]} 22. b5 {[%clk 00:40:37]} {[%emt 00:02:16]} g6 {[%clk
01:18:55]} {[%emt 00:01:32]} 23. Qxf6 {[%clk 00:38:53]} {[%emt 00:02:12]} Nxg4
{[%clk 01:18:38]} {[%emt 00:00:48]} 24. Qxg5 {[%clk 00:36:20]} {[%emt
00:03:03]} Qg7 {[%clk 01:17:02]} {[%emt 00:02:07]} 25. Rb1 {[%clk 00:35:17]}
{[%emt 00:01:33]} Nxe3+ {[%clk 01:16:51]} {[%emt 00:00:41]} 26. Qxe3 {[%clk
00:34:56]} {[%emt 00:00:49]} cxb5 {[%clk 01:16:44]} {[%emt 00:00:38]} 27. axb5
{[%clk 00:35:07]} {[%emt 00:00:18]} a5 {[%clk 01:16:58]} {[%emt 00:00:16]} 28.
b6 {[%clk 00:34:29]} {[%emt 00:01:08]} Qe5 {[%clk 01:15:04]} {[%emt 00:02:24]}
29. Ke2 {[%clk 00:31:10]} {[%emt 00:03:49]} c6 {[%clk 01:15:00]} {[%emt
00:00:35]} 30. Qg3 {[%clk 00:29:27]} {[%emt 00:02:12]} Rhe8 {[%clk 01:14:46]}
{[%emt 00:00:45]} 31. Ra1 {[%clk 00:26:15]} {[%emt 00:03:41]} Kc8 {[%clk
01:14:51]} {[%emt 00:00:25]} 32. Rxa5 {[%clk 00:25:43]} {[%emt 00:01:01]} c5
{[%clk 01:14:07]} {[%emt 00:01:15]} 33. Qxe5 {[%clk 00:19:37]} {[%emt
00:06:35]} Rxe5 {[%clk 01:14:33]} {[%emt 00:00:04]} 34. f4 {[%clk 00:19:45]}
{[%emt 00:00:21]} Rh5 {[%clk 01:14:45]} {[%emt 00:00:19]} 35. f5 {[%clk
00:19:33]} {[%emt 00:00:42]} gxf5 {[%clk 01:14:19]} {[%emt 00:00:57]} 36. Rxc5+
{[%clk 00:19:51]} {[%emt 00:00:12]} Kb8 {[%clk 01:14:36]} {[%emt 00:00:13]} 37.
Rxf5 {[%clk 00:19:53]} {[%emt 00:00:27]} Rh6 {[%clk 01:14:52]} {[%emt
00:00:15]} 38. Rb5 {[%clk 00:17:09]} {[%emt 00:03:13]} Rg8 {[%clk 01:14:33]}
{[%emt 00:00:51]} 39. Rh2 {[%clk 00:14:52]} {[%emt 00:02:46]} Kc8 {[%clk
01:14:03]} {[%emt 00:01:01]} 40. c4 {[%clk 00:09:29]} {[%emt 00:05:52]} Rg1
{[%clk 01:13:47]} {[%emt 00:00:47]} 41. Rc5+ {[%clk 00:02:01]} {[%emt
00:07:57]} Kb8 {[%clk 01:13:20]} {[%emt 00:00:57]} 42. Rb5 {[%clk 00:02:15]}
{[%emt 00:00:16]} Ra1 {[%clk 01:12:10]} {[%emt 00:01:41]} 43. Rb2 {[%clk
00:01:31]} {[%emt 00:01:14]} Kc8 {[%clk 01:12:33]} {[%emt 00:00:07]} 44. h4
{[%clk 00:00:58]} {[%emt 00:01:02]} Kd7 {[%clk 01:12:49]} {[%emt 00:00:14]} 45.
h5 {[%clk 00:00:45]} {[%emt 00:00:43]} Kc6 {[%clk 01:13:08]} {[%emt 00:00:12]}
46. Ke3 {[%clk 00:01:00]} {[%emt 00:00:15]} Re1+ {[%clk 01:12:58]} {[%emt
00:00:40]} 47. Kd4 {[%clk 00:01:10]} {[%emt 00:00:19]} Rd6+ {[%clk 01:11:57]}
{[%emt 00:01:31]} 48. Kc3 {[%clk 00:01:09]} {[%emt 00:00:31]} Rh6 {[%clk
01:12:17]} {[%emt 00:00:11]} 49. Rbg2 {[%clk 00:00:46]} {[%emt 00:00:52]} Rc1+
{[%clk 01:12:31]} {[%emt 00:00:16]} 50. Kb2 {[%clk 00:00:40]} {[%emt 00:00:36]}
Rd1 {[%clk 01:11:57]} {[%emt 00:01:05]} 51. Rg6+ {[%clk 00:00:35]} {[%emt
00:00:35]} Rxg6 {[%clk 01:12:23]} {[%emt 00:00:04]} 52. hxg6 {[%clk 00:00:59]}
{[%emt 00:00:06]} Rg1 {[%clk 01:12:50]} {[%emt 00:00:03]} 53. Rh6 {[%clk
00:00:45]} {[%emt 00:00:44]} Kd6 {[%clk 01:12:22]} {[%emt 00:00:59]} 54. Kc3
{[%clk 00:00:40]} {[%emt 00:00:35]} Ke5 {[%clk 01:12:48]} {[%emt 00:00:03]} 55.
Rh7 {[%clk 00:00:41]} {[%emt 00:00:29]} Rxg6 {[%clk 01:12:46]} {[%emt
00:00:32]} 56. Rxb7 {[%clk 00:01:06]} {[%emt 00:00:05]} Kd6 {[%clk 01:13:07]}
{[%emt 00:00:09]} 57. Rc7 {[%clk 00:01:01]} {[%emt 00:00:35]} Rg3 {[%clk
01:13:02]} {[%emt 00:00:35]} 58. Kd4 {[%clk 00:01:22]} {[%emt 00:00:09]} Rg8
{[%clk 01:11:24]} {[%emt 00:02:08]} 59. c5+ {[%clk 00:01:40]} {[%emt 00:00:12]}
Ke6 {[%clk 01:11:48]} {[%emt 00:00:07]} 60. Rc6+ {[%clk 00:01:58]} {[%emt
00:00:11]} Kd7 {[%clk 01:12:07]} {[%emt 00:00:11]} 61. Rd6+ {[%clk 00:02:19]}
{[%emt 00:00:08]} Kc8 {[%clk 01:12:22]} {[%emt 00:00:16]} 62. c6 {[%clk
00:01:53]} {[%emt 00:00:56]} Rg3 {[%clk 01:10:56]} {[%emt 00:01:56]} 63. Rd7
{[%clk 00:01:32]} {[%emt 00:00:50]} Rg8 {[%clk 01:10:50]} {[%emt 00:00:36]} 64.
b7+ {[%clk 00:01:53]} {[%emt 00:00:09]} Kb8 {[%clk 01:11:17]} {[%emt 00:00:03]}
65. c7+ {[%clk 00:01:42]} {[%emt 00:00:42]} Ka7 {[%clk 01:11:29]} {[%emt
00:00:18]} 66. b8=Q+ {[%clk 00:01:57]} {[%emt 00:00:15]} 1-0

[Event "Klubbmästerskap 2025 Hängrond"]
[Site "Linköping, Sweden"]
[Date "2025.02.18"]
[Round "2.5"]
[White "Karlsson, Henrik 1974"]
[Black "Garner, Mårten"]
[Result "1/2-1/2"]
[TimeControl "90 min + 30 sec/move"]
[WhiteElo "1804"]
[BlackElo "1841"]

1. e4 {[%clk 01:30:50]} {[%emt 00:00:09]} c5 {[%clk 01:30:53]} {[%emt
00:00:08]} 2. Nf3 {[%clk 01:31:13]} {[%emt 00:00:07]} e6 {[%clk 01:31:16]}
{[%emt 00:00:08]} 3. d4 {[%clk 01:31:30]} {[%emt 00:00:12]} cxd4 {[%clk
01:31:36]} {[%emt 00:00:10]} 4. Nxd4 {[%clk 01:31:54]} {[%emt 00:00:05]} Nc6
{[%clk 01:32:01]} {[%emt 00:00:05]} 5. f4 {[%clk 01:31:03]} {[%emt 00:01:22]}
Qc7 {[%clk 01:31:13]} {[%emt 00:01:17]} 6. Nc3 {[%clk 01:30:46]} {[%emt
00:00:48]} a6 {[%clk 01:31:33]} {[%emt 00:00:10]} 7. g3 {[%clk 01:28:42]}
{[%emt 00:02:34]} Be7 {[%clk 01:30:12]} {[%emt 00:01:50]} 8. Be3 {[%clk
01:28:35]} {[%emt 00:00:37]} b5 {[%clk 01:29:15]} {[%emt 00:01:27]} 9. a3
{[%clk 01:25:34]} {[%emt 00:03:32]} Bb7 {[%clk 01:26:45]} {[%emt 00:02:59]} 10.
Bd3 {[%clk 01:21:09]} {[%emt 00:04:55]} Nf6 {[%clk 01:24:59]} {[%emt 00:02:15]}
11. Qf3 {[%clk 01:16:20]} {[%emt 00:05:20]} h5 {[%clk 01:15:50]} {[%emt
00:09:38]} 12. Nb3 {[%clk 01:14:34]} {[%emt 00:02:16]} d6 {[%clk 01:14:02]}
{[%emt 00:02:16]} 13. h3 {[%clk 01:12:11]} {[%emt 00:02:56]} Rc8 {[%clk
01:12:41]} {[%emt 00:01:49]} 14. Kd2 {[%clk 01:08:54]} {[%emt 00:03:49]} Nd7
{[%clk 01:07:33]} {[%emt 00:05:38]} 15. g4 {[%clk 01:08:12]} {[%emt 00:01:12]}
Nc5 {[%clk 01:04:33]} {[%emt 00:03:28]} 16. Rac1 {[%clk 01:03:07]} {[%emt
00:05:36]} g6 {[%clk 01:00:44]} {[%emt 00:04:19]} 17. Rhf1 {[%clk 00:59:35]}
{[%emt 00:04:03]} Qd7 {[%clk 00:43:58]} {[%emt 00:17:12]} 18. Qf2 {[%clk
00:53:38]} {[%emt 00:06:29]} Nxb3+ {[%clk 00:40:05]} {[%emt 00:04:23]} 19. cxb3
{[%clk 00:53:59]} {[%emt 00:00:10]} Na5 {[%clk 00:38:17]} {[%emt 00:02:16]} 20.
Bc2 {[%clk 00:52:51]} {[%emt 00:01:40]} hxg4 {[%clk 00:36:22]} {[%emt
00:02:25]} 21. f5 {[%clk 00:50:16]} {[%emt 00:03:05]} gxf5 {[%clk 00:30:07]}
{[%emt 00:06:45]} 22. exf5 {[%clk 00:50:23]} {[%emt 00:00:23]} gxh3 {[%clk
00:13:12]} {[%emt 00:17:25]} 23. fxe6 {[%clk 00:49:43]} {[%emt 00:01:10]} Qxe6
{[%clk 00:13:17]} {[%emt 00:00:24]} 24. Bf5 {[%clk 00:49:28]} {[%emt 00:00:46]}
Nxb3+ {[%clk 00:11:52]} {[%emt 00:01:55]} 25. Kc2 {[%clk 00:47:53]} {[%emt
00:02:04]} Qc4 {[%clk 00:07:36]} {[%emt 00:04:45]} 26. Bxc8 {[%clk 00:40:49]}
{[%emt 00:07:35]} Be4+ {[%clk 00:07:29]} {[%emt 00:00:37]} 27. Kd1 {[%clk
00:41:12]} {[%emt 00:00:07]} Nxc1 {[%clk 00:03:32]} {[%emt 00:04:27]} 28. Bxa6
{[%clk 00:38:27]} {[%emt 00:03:16]} Bc6 {[%clk 00:00:37]} {[%emt 00:03:25]} 29.
Nxb5 {[%clk 00:22:47]} {[%emt 00:16:09]} Bxb5 {[%clk 00:00:40]} {[%emt
00:00:28]} 30. Bxb5+ {[%clk 00:23:07]} {[%emt 00:00:09]} Qxb5 {[%clk 00:00:50]}
{[%emt 00:00:20]} 31. Qxf7+ {[%clk 00:22:53]} {[%emt 00:00:45]} Kd7 {[%clk
00:00:50]} {[%emt 00:00:29]} 32. Kxc1 {[%clk 00:20:52]} {[%emt 00:02:31]} h2
{[%clk 00:01:07]} {[%emt 00:00:13]} 33. Rh1 {[%clk 00:19:28]} {[%emt 00:01:54]}
Qc6+ {[%clk 00:01:31]} {[%emt 00:00:06]} 34. Kd2 {[%clk 00:19:25]} {[%emt
00:00:32]} Qxh1 {[%clk 00:01:18]} {[%emt 00:00:43]} 35. Qf5+ {[%clk 00:19:45]}
{[%emt 00:00:10]} Kc7 {[%clk 00:00:47]} {[%emt 00:01:02]} 36. Qa5+ {[%clk
00:19:59]} {[%emt 00:00:15]} Kd7 {[%clk 00:00:37]} {[%emt 00:00:41]} 37. Qf5+
{[%clk 00:20:17]} {[%emt 00:00:11]} Kc7 {[%clk 00:00:42]} {[%emt 00:00:25]} 38.
Qa5+ {[%clk 00:20:05]} {[%emt 00:00:42]} Kd7 {[%clk 00:00:39]} {[%emt
00:00:33]} 1/2-1/2